Cogmind - Beta 13 @@@ ROGUE MODE // 2024.05.18 @ 13:08:38 Player: Occam Result: Self-destructed Performance ------------- Evolutions (4) 2000 Regions Visited (7) 1400 Robots Destroyed (205) 1025 Value Destroyed (5525) 5525 Prototype IDs (10) 200 Alien Tech Used (0) 0 Bonus (256) 256 TOTAL SCORE: 10406 Bonus ------- High Alert Combat Kills 296 Follower Combat Kills 91 Friendly Fire -131 Cogmind --------- Core Integrity 850/850 Matter 300/300 Energy 310/310 System Corruption 0% Temperature Cool (0) Movement Rolling (210) Ox8 Location -6/Factory Parts ------- > --- POWER (1) -------- Heavy Deuterium Engine > --- PROPULSION (2) --- Armored Medium Treads Armored Wheel > --- UTILITY (9) ------ Improved Heat Sink Huge Storage Unit Structural Scanner Machine Analyzer Layered Light Armor Plating Hacking Suite Hacking Suite > --- WEAPON (3) ------- Advanced Beam Rifle Gatling Laser Improved Assault Rifle > --- INVENTORY (25) --- Cooled Ion Engine Armored Medium Treads Armored Medium Treads Armored Medium Treads Compact Wheel High-capacity Matter Pod (200) Improved Sensor Array Medium Armor Plating Improved Light Armor Plating Improved Shield Generator Authchip [Power] Authchip [Device] Authchip [Armor] Bomb Drone Bay (16/16) Advanced Beam Rifle Improved EM Pulse Cannon Improved EM Pulse Cannon Gauss Rifle Gauss Rifle Gauss Rifle Heavy Rocket Launcher Heavy Rocket Launcher Improved Datajack Powered Hammer Peak State ------------ > --- POWER ------------ Heavy Deuterium Engine > --- PROPULSION ------- Armored Medium Treads Armored Wheel > --- UTILITY ---------- Improved Heat Sink Huge Storage Unit Structural Scanner Machine Analyzer Layered Light Armor Plating Hacking Suite Hacking Suite > --- WEAPON ----------- Advanced Beam Rifle Improved Spread Laser Improved Assault Rifle > --- INVENTORY -------- Cooled Ion Engine Armored Medium Treads Armored Medium Treads Armored Medium Treads Compact Wheel High-capacity Matter Pod Improved Sensor Array Medium Armor Plating Improved Light Armor Plating Improved Shield Generator Authchip [Device] Authchip [Armor] Bomb Drone Bay Advanced Beam Rifle Gatling Laser Improved EM Pulse Cannon Improved EM Pulse Cannon Gauss Rifle Gauss Rifle Gauss Rifle Heavy Rocket Launcher Heavy Rocket Launcher Improved Datajack Powered Hammer [Rating: 53] Favorites ----------- Power Improved Ion Engine Engine Improved Ion Engine Propulsion Light Treads Treads Light Treads Leg Aluminum Leg Wheel Compact Wheel Flight Unit Improved Flight Unit Utility Huge Storage Unit Device Cooling System Storage Huge Storage Unit Processor Machine Analyzer Hackware Hacking Suite Protection Light Armor Plating Weapon Improved Medium Laser Energy Gun Improved Medium Laser Ballistic Gun Assault Rifle Build | -11 -10 -10 -9 -9 -8 -7 -6 ------- Run | Yrd Mat Min Mat Min Mat Fac Fac Slots Evolved 8 | . . . 2 . 2 2 2 Power . | . . . . . . . . Propulsion . | . . . . . . . . Utility 7 | . . . 1 . 2 2 2 Weapon 1 | . . . 1 . . . . Parts Attached 164 | 1 19 11 37 4 62 30 . Power 9 | . 2 1 3 . 2 1 . Engine 9 | . 2 1 3 . 2 1 . Core . | . . . . . . . . Reactor . | . . . . . . . . Propulsion 56 | . 8 3 12 . 24 9 . Treads 33 | . 5 2 7 . 14 5 . Leg . | . . . . . . . . Wheel 22 | . 3 1 4 . 10 4 . Hover . | . . . . . . . . Flight 1 | . . . 1 . . . . Utility 56 | 1 5 2 8 4 24 12 . Device 30 | 1 1 1 5 4 14 4 . Storage 4 | . 2 . 1 . 1 . . Processor 1 | . . . . . . 1 . Hackware 3 | . . . . . . 3 . Protection 18 | . 2 1 2 . 9 4 . Artifact . | . . . . . . . . Weapon 43 | . 4 5 14 . 12 8 . Energy Gun 30 | . . 5 13 . 5 7 . Energy Cannon . | . . . . . . . . Ballistic Gun 13 | . 4 . 1 . 7 1 . Ballistic Cannon . | . . . . . . . . Launcher . | . . . . . . . . Special Weapon . | . . . . . . . . Impact Weapon . | . . . . . . . . Slashing Weapon . | . . . . . . . . Piercing Weapon . | . . . . . . . . Special Melee Weapon . | . . . . . . . . Unidentified Prototypes 8 | . . . 3 1 1 3 . Parts Lost 36 | . 3 7 2 . 17 7 . Power 1 | . . 1 . . . . . Propulsion 10 | . 1 3 . . 4 2 . Utility 16 | . 1 1 1 . 8 5 . Weapon 9 | . 1 2 1 . 5 . . Highest Loss Streak 6 | . 2 4 1 . 6 2 . To Critical Strikes . | . . . . . . . . Average Slot Usage (%) 99 | . 98 99 99 99 98 98 . Engine 10 | . 13 14 11 11 8 7 . Treads 11 | . 16 14 11 11 9 7 . Wheel 9 | . 9 13 10 11 7 6 . Device 17 | . 7 13 19 21 22 14 . Storage 10 | . 14 14 11 11 9 7 . Hackware 1 | . . . . . . 12 . Protection 5 | . 6 . 2 . 12 9 . Energy Gun 23 | . . 26 32 33 19 19 . Ballistic Gun 6 | . 27 1 . . 7 3 . Naked Turns . | . . . . . . . . Heaviest Build 116 | 15 93 93 101 100 116 111 . Greatest Support 40 | 20 40 16 20 16 40 16 . Greatest Overweight (x) 8 | . 5 5 6 6 7 8 . Average Overweight (x) 5 | . 2 5 5 6 5 6 . Largest Inventory Capacity 25 | 8 25 25 25 25 25 25 . Average Capacity 23 | 8 16 25 25 25 25 25 . Most Carried 25 | 6 17 20 25 25 25 25 . Average Carried 21 | 6 12 15 24 24 24 24 . Final Capacity 25 | 8 25 25 25 25 25 25 25 Final Carried 25 | 6 17 20 25 25 25 25 25 Class Distribution -------------------- 28% | Scavenger-Tank 24% | Mutant 17% | Skirmisher 14% | Gunner 5% | Tank 4% | Scavenger-Skirmisher Dominant Class ---------------- Mutant | -10/Materials Mutant | -10/Mines Skirmisher | -9/Materials Gunner | -9/Mines Scavenger-Tank | -8/Materials Scavenger-Tank | -7/Factory Scavenger-Tank | -6/Factory Resources | -11 -10 -10 -9 -9 -8 -7 -6 ----------- Run | Yrd Mat Min Mat Min Mat Fac Fac Matter Collected 3106 | 276 860 153 365 40 1009 403 . Remotely 145 | . . . . . 145 . . Salvage Created 8783 | 104 1222 290 2306 313 3038 1510 . Parts 430 | 4 78 11 138 19 117 63 . Haulers Intercepted 10 | . 2 . 5 . 3 . . Recyclers Shooed 12 | . 4 2 1 . 2 3 . Parts Field Recycled . | . . . . . . . . Retrieved Matter . | . . . . . . . . Parts Self-Destructed . | . . . . . . . . Prevented . | . . . . . . . . Kills | -11 -10 -10 -9 -9 -8 -7 -6 ------- Run | Yrd Mat Min Mat Min Mat Fac Fac Combat Hostiles Destroyed 132 | . 18 6 28 8 48 24 . Guns 124 | . 18 5 25 8 45 23 . AOE 1 | . . . . . . 1 . Classes Destroyed 15 | 2 6 . 3 1 2 1 . Worker 8 | . . . 5 2 . 1 . Builder 10 | . 3 1 4 . 1 1 . Tunneler 6 | 1 3 . 1 1 . . . Hauler 10 | . 2 . 5 . 3 . . Recycler 22 | 1 4 . 6 1 6 4 . Mechanic 1 | . . . 1 . . . . Operator 9 | . 3 . 3 . 2 1 . Watcher 12 | . 3 . 4 . 3 2 . Swarmer 21 | . 3 . 3 6 7 2 . Grunt 84 | . 15 6 18 1 28 16 . Brawler 2 | . . . . . 1 1 . Duelist 3 | . . . . 1 2 . . Sentry 18 | . . . 8 . 8 2 . Hunter 4 | . . . . . 2 2 . Programmer 1 | . . . . . . 1 . Best Kill Streak 6 | 2 6 2 6 4 6 6 . Combat Bots Only 6 | . 4 2 5 3 6 4 . Max Kills in Single Turn 2 | 1 1 1 2 2 2 2 . Gunslinging 1 | . . . 1 1 1 . . Exploded 1 | . . . . . . 1 . Melee . | . . . . . . . . Uniques/NPCs Destroyed . | . . . . . . . . Combat | -11 -10 -10 -9 -9 -8 -7 -6 -------- Run | Yrd Mat Min Mat Min Mat Fac Fac Hostile Shots Fired 693 | . 114 69 84 15 236 175 . Missed 176 | . 40 18 16 2 60 40 . Damage Taken 6681 | . 829 703 873 123 2490 1663 . Core 772 | . 127 85 114 21 245 180 . Absorbed by Shields 177 | . . . . . 148 29 . Ignored by Resistances 110 | . . . . . 86 24 . Regen/Repaired (Parts) 40 | . . . 40 . . . . Core Remaining (%) 62 | 100 . 15 . 66 55 74 . Volleys Fired 506 | 11 113 50 97 22 146 67 . Largest 3 | 2 2 2 3 3 3 3 . Hottest 216 | 40 40 115 195 168 191 216 . Shots Fired 1301 | 22 227 83 281 66 434 188 . Gun 1301 | 22 227 83 281 66 434 188 . Cannon . | . . . . . . . . Launcher . | . . . . . . . . Special . | . . . . . . . . Kinetic 431 | 22 227 15 . . 137 30 . Thermal 870 | . . 68 281 66 297 158 . Explosive . | . . . . . . . . Electromagnetic . | . . . . . . . . Robot Hit Streak 34 | 6 9 16 15 8 34 13 . Robot Miss Streak 7 | 3 7 3 6 2 6 7 . Penetration Max . | . . . . . . . . Secondary Targets 21 | . . 1 3 3 10 4 . Max Gunslinging Chain 1 | . . 1 1 1 1 1 . Shots Hit Robots 832 | 16 131 63 160 39 291 132 . Core Hits 368 | 3 57 16 67 13 106 106 . Critical Kills 4 | 1 1 . . . 1 1 . Critical Parts Destroyed 1 | . . . . . 1 . . Critical Strikes 52 | 1 1 2 15 3 19 11 . Burn 47 | . . 2 15 3 17 10 . Destroy 5 | 1 1 . . . 2 1 . Melee Attacks . | . . . . . . . . Impact . | . . . . . . . . Slashing . | . . . . . . . . Piercing . | . . . . . . . . Sneak Attacks . | . . . . . . . . Combat Hostiles . | . . . . . . . . Follow-up Attacks . | . . . . . . . . Damage Inflicted 14282 | 195 1513 722 2779 639 5356 3078 . Guns 14053 | 195 1513 722 2779 639 5356 2849 . Cannons . | . . . . . . . . Explosions 229 | . . . . . . 229 . Melee . | . . . . . . . . Ramming . | . . . . . . . . Kinetic 3571 | 195 1513 120 . . 1463 280 . Thermal 10482 | . . 602 2779 639 3893 2569 . Explosive . | . . . . . . . . Electromagnetic 229 | . . . . . . 229 . Impact . | . . . . . . . . Slashing . | . . . . . . . . Piercing . | . . . . . . . . Highest Corruption 14 | . 2 2 . . 14 4 . Average Corruption 5 | . 2 2 . . 13 3 . Corruption Purged . | . . . . . . . . Corruption Blocked . | . . . . . . . . Effects 85 | . 16 10 . . 39 20 . Message Errors 21 | . 6 3 . . 9 3 . Matter Fused 12 | . 2 2 . . 6 2 . Heat Flow Errors 12 | . . 2 . . 3 7 . Energy Discharges 11 | . 3 . . . 6 2 . Parts Rejected 1 | . . . . . . 1 . Parts Fused 1 | . . . . . 1 . . Data Loss (minor) 8 | . 2 1 . . 4 1 . Data Loss (major) 3 | . . . . . 2 1 . Misfires 7 | . 2 1 . . 3 1 . Alerts 2 | . . . . . . 2 . Weapon Failures 7 | . 1 1 . . 5 . . Overload Shots . | . . . . . . . . Overflow Damage . | . . . . . . . . Projectiles . | . . . . . . . . Explosions . | . . . . . . . . Melee . | . . . . . . . . Knockbacks . | . . . . . . . . Impact . | . . . . . . . . Kinetic . | . . . . . . . . Secondary . | . . . . . . . . Self-Inflicted Damage 35 | . . . . . . 35 . Shots 2 | . . . . . . 2 . Rammed . | . . . . . . . . Targets Rammed . | . . . . . . . . Kicked . | . . . . . . . . Crushed . | . . . . . . . . Highest Temperature 336 | . 42 268 320 108 282 336 . Average Temperature 68 | . 9 88 62 36 55 106 . Received Heat Transfer 2724 | . 414 483 306 . 1020 501 . Effects 4 | . . 2 . . 2 . . Energy Bleed 1 | . . 1 . . . . . Interference 3 | . . 1 . . 2 . . Siege Activations . | . . . . . . . . Robots Corrupted . | . . . . . . . . Combat Hostiles . | . . . . . . . . Parts Fried . | . . . . . . . . Impact Corruptions . | . . . . . . . . Robots Melted 7 | . . 1 3 . 3 . . Combat Hostiles 7 | . . 1 3 . 3 . . Parts Melted 66 | . . 5 27 4 18 12 . Heat Transferred 23675 | . . 1579 7229 1591 8621 4655 . Parts Sabotaged . | . . . . . . . . Parts Stolen . | . . . . . . . . Parts Stripped . | . . . . . . . . Power Chain Reactions . | . . . . . . . . Alert | -11 -10 -10 -9 -9 -8 -7 -6 ------- Run | Yrd Mat Min Mat Min Mat Fac Fac Peak Influence 664 | 10 255 127 590 289 664 487 . Initial 238 | . 6 57 3 219 1 201 238 Average 219 | 6 127 46 258 160 305 317 . Maximum Alert Level 2 | . 1 . 2 1 2 2 . Low Security (%) 49 | 100 79 100 45 56 33 1 . Level 1 32 | . 20 . 28 43 24 81 . Level 2 17 | . . . 25 . 42 16 . Level 3 . | . . . . . . . . Level 4 . | . . . . . . . . Level 5 . | . . . . . . . . High Security . | . . . . . . . . Max Security . | . . . . . . . . Squads Dispatched 33 | . 5 1 6 1 12 8 . Investigation 13 | . 2 1 3 . 2 5 . Extermination 1 | . . . . . . 1 . Reinforcement 11 | . 3 . 3 1 3 1 . Assault 1 | . . . . . 1 . . Garrison 7 | . . . . . 6 1 . Intercept . | . . . . . . . . Searches Triggered . | . . . . . . . . Construction Impeded 3 | . . . . 1 1 1 . Haulers Reinforced . | . . . . . . . . Active Scanning Responses . | . . . . . . . . Cargo Convoy Interrupts . | . . . . . . . . Stealth | -11 -10 -10 -9 -9 -8 -7 -6 --------- Run | Yrd Mat Min Mat Min Mat Fac Fac Distress Signals 13 | . 5 . 3 1 3 1 . Communications Jammed . | . . . . . . . . Distress Signals . | . . . . . . . . Times Spotted 197 | . 37 7 46 7 68 32 . Peak Tracking Total 6 | . 6 2 4 3 6 6 . Tactical Retreats 9 | . . 1 . . 7 1 . Traps | -11 -10 -10 -9 -9 -8 -7 -6 ------- Run | Yrd Mat Min Mat Min Mat Fac Fac Traps Triggered 7 | . 4 . 1 . 1 1 . Indirectly . | . . . . . . . . Trap Hack Attempts . | . . . . . . . . Triggered . | . . . . . . . . Disarmed . | . . . . . . . . Reprogrammed . | . . . . . . . . Reused . | . . . . . . . . Traps Extracted . | . . . . . . . . Installed . | . . . . . . . . Triggered 1 | . . 1 . . . . . Machines | -11 -10 -10 -9 -9 -8 -7 -6 ---------- Run | Yrd Mat Min Mat Min Mat Fac Fac Machines Disabled 9 | . . . 2 1 2 4 . Max in Single Turn 1 | . . . 1 1 1 1 . Machines Repaired . | . . . . . . . . Machines Dismantled . | . . . . . . . . Machines Sabotaged . | . . . . . . . . Overloaded Fab Kills . | . . . . . . . . Hacking | -11 -10 -10 -9 -9 -8 -7 -6 --------- Run | Yrd Mat Min Mat Min Mat Fac Fac Machines Accessed 35 | . 6 1 13 1 9 5 . Terminals 24 | . 5 . 9 . 8 2 . Fabricators 3 | . . . . . . 3 . Repair Stations 2 | . . . 2 . . . . Recycling Units 1 | . 1 . . . . . . Scanalyzers 2 | . . . 2 . . . . Garrison Access 1 | . . . . . 1 . . Total Hacks 99 | . 18 1 41 1 25 13 . Successful 51 | . 11 1 22 1 9 7 . Failed 47 | . 6 . 19 . 16 6 . Catastrophic 8 | . 1 . 5 . 2 . . Database Lockouts 1 | . 1 . . . . . . Manual 60 | . 10 . 22 . 19 9 . Terminals 71 | . 16 . 28 . 22 5 . Fabricators 8 | . . . . . . 8 . Repair Stations 4 | . . . 4 . . . . Recycling Units 2 | . 2 . . . . . . Scanalyzers 9 | . . . 9 . . . . Garrison Access 3 | . . . . . 3 . . Terminal Hacks 22 | . 6 1 8 1 6 . . Part Schematic 1 | . . . 1 . . . . Robot Schematic 1 | . . . 1 . . . . Robot Analysis 4 | . 1 . 2 . 1 . . Prototype ID Bank 1 | . 1 . . . . . . Open Door 2 | . . 1 . 1 . . . Branch Access Points 1 | . . . . . 1 . . Terminal Index 3 | . 1 . 1 . 1 . . Alert Level 2 | . 1 . 1 . . . . Unreport Threat 3 | . . . . . 3 . . Locate Traps 1 | . . . 1 . . . . Dispatch Records 1 | . 1 . . . . . . Hauler Manifests 2 | . 1 . 1 . . . . Fabricator Hacks 3 | . . . . . . 3 . Load Schematic 3 | . . . . . . 3 . Repair Station Hacks 4 | . . . 4 . . . . Scan Component 2 | . . . 2 . . . . Repair 2 | . . . 2 . . . . Recycling Unit Hacks 1 | . 1 . . . . . . Report Inventory 1 | . 1 . . . . . . Scanalyzer 6 | . . . 6 . . . . Insert Component 3 | . . . 3 . . . . Analyze 3 | . . . 3 . . . . Garrison Access Hacks . | . . . . . . . . Unauthorized Hacks 15 | . 4 . 4 . 3 4 . Terminals 11 | . 3 . 4 . 3 1 . Botnet 7 | . 2 . 2 . 2 1 . Operators 4 | . 1 . 2 . 1 . . Fabricators 3 | . . . . . . 3 . Recompile 3 | . . . . . . 3 . Repair Stations . | . . . . . . . . Recycling Units 1 | . 1 . . . . . . Tunnel 1 | . 1 . . . . . . Scanalyzers . | . . . . . . . . Garrison Access . | . . . . . . . . Data Cores Recovered . | . . . . . . . . Used . | . . . . . . . . Hacking Detections 28 | . 3 . 12 . 9 4 . Full Trace Events 7 | . 1 . 3 . 2 1 . Feedback Events . | . . . . . . . . Feedback Blocked . | . . . . . . . . Robot Schematics Acquired 1 | . . . 1 . . . . Robots Built . | . . . . . . . . Authchips . | . . . . . . . . Time . | . . . . . . . . Total Robot Build Rating . | . . . . . . . . Part Schematics Acquired 4 | . . . 4 . . . . Parts Built . | . . . . . . . . Authchips . | . . . . . . . . Time . | . . . . . . . . Total Part Build Rating . | . . . . . . . . Parts Repaired 2 | . . . 2 . . . . Time 51 | . . . 51 . . . . Parts Recycled . | . . . . . . . . Recycled Matter . | . . . . . . . . Retrieved Matter . | . . . . . . . . Retrieved Components . | . . . . . . . . Parts Scanalyzed 3 | . . . 3 . . . . Part Schematics Acquired 3 | . . . 3 . . . . Parts Damaged . | . . . . . . . . Bothacking | -11 -10 -10 -9 -9 -8 -7 -6 ------------ Run | Yrd Mat Min Mat Min Mat Fac Fac Used RIF Installer . | . . . . . . . . Robots Hacked . | . . . . . . . . Non-combat . | . . . . . . . . Combat . | . . . . . . . . Robot Hacks Applied . | . . . . . . . . Relay Couplers Released . | . . . . . . . . Fabnet Peak Effective % . | . . . . . . . . Robots Rewired . | . . . . . . . . Allies Hacked . | . . . . . . . . Hacks Repelled . | . . . . . . . . Allies | -11 -10 -10 -9 -9 -8 -7 -6 -------- Run | Yrd Mat Min Mat Min Mat Fac Fac Total Allies 4 | . . 4 . . . . . Largest Group 4 | . . 4 4 . . . . Highest-Rated Group 71 | . . 71 71 . . . . Highest-Rated Ally 31 | . . 31 31 . . . . Total Orders . | . . . . . . . . Ally Attacks 22 | . . . 22 . . . . Total Damage 204 | . . . 204 . . . . Kills 5 | . . . 5 . . . . Allies Corrupted . | . . . . . . . . Allies Melted . | . . . . . . . . Intel | -11 -10 -10 -9 -9 -8 -7 -6 ------- Run | Yrd Mat Min Mat Min Mat Fac Fac Robot Analysis Total 4 | . 1 . 2 . 1 . . Derelict Logs Recovered 3 | . . 2 . 1 . . . Drone Launches . | . . . . . . . . Drone Recoveries . | . . . . . . . . Exploration | -11 -10 -10 -9 -9 -8 -7 -6 ------------- Run | Yrd Mat Min Mat Min Mat Fac Fac Turns Passed 10983 | 65 1595 1147 3283 1460 1929 1504 . Spaces Moved 4718 | 26 680 565 1464 717 664 602 . Core . | . . . . . . . . Treads 323 | . 317 . 2 . 4 . . Legs 100 | 26 74 . . . . . . Wheels 4295 | . 289 565 1462 717 660 602 . Hover . | . . . . . . . . Flight . | . . . . . . . . Fastest Speed 115 | 120 115 175 175 190 190 190 . Average Speed 186 | 120 171 175 190 190 191 198 . Slowest Speed 480 | 120 480 175 480 190 320 210 . Overloaded Moves . | . . . . . . . . Propulsion Burnouts . | . . . . . . . . Robots Hopped . | . . . . . . . . Cave-ins Triggered . | . . . . . . . . Exploration Rate (%) 66 | 3 93 98 98 94 55 21 . Regions Visited 7 Branch Regions 2 Pre-discovered Areas 4 | . 1 2 . 1 . . . Known Exits Taken 1 | . . . . . 1 . . Unknown Exits Taken 6 | 1 1 1 1 1 . 1 . Scrap Searched 2 | . . 2 . . . . . Spaces Dug . | . . . . . . . . Terrain Destroyed 1 | . . . . . 1 . . Melee . | . . . . . . . . Projectile . | . . . . . . . . AOE . | . . . . . . . . Terrain Rammed . | . . . . . . . . Walls Destroyed . | . . . . . . . . Machines Disabled . | . . . . . . . . Actions | -11 -10 -10 -9 -9 -8 -7 -6 --------- Run | Yrd Mat Min Mat Min Mat Fac Fac Total 5877 | 37 901 641 1770 766 993 769 . Wait 265 | . 52 8 86 19 74 26 . Move 4711 | 25 679 564 1463 716 663 601 . Hop . | . . . . . . . . Pick Up 111 | . 22 8 40 . 21 20 . Fast Attach 49 | 1 9 . 10 3 17 9 . Attach 48 | . 6 7 8 . 17 10 . Detach 12 | . 3 . 1 1 4 3 . Swap 67 | . 4 4 19 1 28 11 . Drop 108 | . 13 . 46 4 23 22 . Fire 506 | 11 113 50 97 22 146 67 . Melee . | . . . . . . . . Ram . | . . . . . . . . Kick . | . . . . . . . . Crush . | . . . . . . . . Escape Stasis . | . . . . . . . . Rewire . | . . . . . . . . Trap . | . . . . . . . . Miscellaneous . | . . . . . . . . Route ------- -11/Scrapyard -10/Materials (discovered 4 exits: *Mat x3 / *Min) -10/Mines (discovered 3 exits: *Mat x2 / [*Exi]) -9/Materials (discovered 6 exits: *Mat x3 / *Min x2 / [*Sto]) -9/Mines (discovered 3 exits: *Mat x2 / [*Zio]) -8/Materials (discovered 2 exits: *Fac x2) -7/Factory (discovered 3 exits: [*Fac] / [*Low x2]) -6/Factory History --------- Turn | Location | Event 1 | -11/Scrapyard | Discovered new exit (range 3) 66 | -11/Scrapyard | Entered Materials 292 | -10/Materials | Discovered new exit (range 10) 308 | -10/Materials | Build established: Mutant 489 | -10/Materials | Central database locked down 777 | -10/Materials | Core integrity fell below 50% 912 | -10/Materials | Discovered new exit (range 10) 1096 | -10/Materials | Discovered new exit (range 15) 1270 | -10/Materials | Discovered new exit (range 16) 1661 | -10/Materials | Entered Mines 1760 | -10/Mines | Lost 4 parts (1n1u2w) 1797 | -10/Mines | A weapon hastily lodged in a ceiling crevice suddenly fell to the ground 1852 | -10/Mines | Discovered new exit (range 10) 1857 | -10/Mines | Learned location of Zion (-7) 1992 | -10/Mines | Deemed a non-threat by the Exiles lab entrance 1992 | -10/Mines | Discovered new exit (range 5) 2200 | -10/Mines | Core integrity fell below 20% 2434 | -10/Mines | Met a Derelict shopkeep closing up shop 2535 | -10/Mines | Assisted by bots powering up and referring to "LRC-V3" 2582 | -10/Mines | Received a Rocket Launcher from a helpful Derelict 2778 | -10/Mines | Received a Mining Laser from a helpful Derelict 2780 | -10/Mines | Discovered new exit (range 5) 2808 | -10/Mines | Entered Materials 2808 | -9/Materials | Accompanied by 4 allies 2808 | -9/Materials | Evolved 2 slots: Utility x1, Weapon x1 2841 | -9/Materials | Discovered new exit (range 12) 3128 | -9/Materials | Build established: Tank 3386 | -9/Materials | Discovered new exit (range 16) 3640 | -9/Materials | Discovered new exit (range 5) 3782 | -9/Materials | Build established: Scavenger-Skirmisher 4022 | -9/Materials | Discovered new exit (range 15) 4217 | -9/Materials | Repaired Structural Scanner 4333 | -9/Materials | Discovered new exit (range 12) 4519 | -9/Materials | Build established: Skirmisher 4886 | -9/Materials | Discovered new exit (range 6) 5106 | -9/Materials | Repaired Imp. Medium Laser 6091 | -9/Materials | Entered Mines 6282 | -9/Mines | Discovered new exit (range 12) 6434 | -9/Mines | Build established: Gunner 6606 | -9/Mines | Discovered new exit (range 6) 6731 | -9/Mines | Learned location of Storage (-9) 6798 | -9/Mines | Learned 2 Materials zone layouts 6898 | -9/Mines | Found the Drone Emporium 6913 | -9/Mines | Found Prototype Device 6913 | -9/Mines | Identified Bomb Drone Bay 7133 | -9/Mines | A Derelict revealed a hidden shortcut to a safe place 7551 | -9/Mines | Entered Materials 7551 | -8/Materials | Evolved 2 slots: Utility x2 7552 | -8/Materials | Identified exit to Factory 7864 | -8/Materials | Build established: Scavenger-Tank 8068 | -8/Materials | Garrison activated, responded to threat 8108 | -8/Materials | Discovered exit to Factory (range 4) 8375 | -8/Materials | Garrison activated, responded to threat 8465 | -8/Materials | Lost 3 parts (2n1u) 8621 | -8/Materials | System corruption reached 10% 8652 | -8/Materials | Lost 6 parts (1n2u3w) 9151 | -8/Materials | First assault squad dispatched 9480 | -8/Materials | Entered Factory 9480 | -7/Factory | Evolved 2 slots: Utility x2 10027 | -7/Factory | Discovered new exit (range 15) 10729 | -7/Factory | Discovered new exit (range 11) 10807 | -7/Factory | Discovered new exit (range 3) 10910 | -7/Factory | Garrison activated, responded to threat 10984 | -7/Factory | Entered another Factory area 10984 | -6/Factory | Evolved 2 slots: Utility x2 10984 | -6/Factory | Self-destructed Last Messages --------------- 10882_ Dropped Imp. Spread Laser. 10884_ Acquired Authchip [Power]. 10910_ G-47 Trooper calls for garrison reinforcements. 10910_ ALERT: Activating Garrison Access F004. 10910_ G-47 Trooper destroyed. 10913_ G-47 Trooper suffers critical hit (Burn). 10914_ G-47 Trooper heat short circuits Particle Gun. 10917_ G-47 Trooper destroyed. 10920_ Acquired 28 matter. 10928_ Acquired 3 matter. 10930_ S-27 Virus destroyed. 10930_ Switching to secondary target: S-27 Virus. 10931_ Acquired 3 matter. 10940_ S-27 Virus destroyed. 10941_ Acquired 3 matter. 10953_ System corrupted: Energy discharge (-65). 10984_ System corrupted: Heat flow error (+292). PARAMETERS=UTILITY+2 LOCATION=UNKNOWN GOAL=ESCAPE Map ----- +----------------------------------------------------+ | ??????????????????????????????????????? | | ??????????????????????????????????????? | | ??????????????????????????????????????? | | ??????????????????????????????????????? | | ??????????????????????????????????????? | | ??????????????????????????????????????? | | ??????????????????????????????????????? | | ??????????????????????????????????????? | | ??????????????????????????????????????? | | ??????????????????????????????????????? | | ??????????????????????????????????????? | | ??????????????????????????????????????? | | ??????????????????????????????????????? | | ??????????????????????????????????????? | | ??????????????????????????????????????? | | ??????????????????????????????????????? | | ??????????????????????????????????????? | | ??????????????????????????????????????? | | ??????????????????????????????????????? | | ??????????????????????????????????????? | | ??????????????????????????????????????? | | ????????????###### ????????? | | ????????????############+#####????????? | | ????????????## ##????????? | | ????????????## ##????????? | | ????????????## @ ##????????? | | ????????????## ##????????? | | ???????????? # ##????????? | | ???????????? # ###########????????? | | ???????????? # ? # ##????????? | | ???????????? # ???????????????????????? | | ???????????? + ???????????????????????? | | ??????????????????????????????????????? | | ??????????????????????????????????????? | | ??????????????????????????????????????? | | ??????????????????????????????????????? | | ??????????????????????????????????????? | | ??????????????????????????????????????? | | ??????????????????????????????????????? | | ??????????????????????????????????????? | | ??????????????????????????????????????? | | ??????????????????????????????????????? | | ??????????????????????????????????????? | | ??????????????????????????????????????? | | ??????????????????????????????????????? | | ??????????????????????????????????????? | | ??????????????????????????????????????? | | ??????????????????????????????????????? | | ??????????????????????????????????????? | | ??????????????????????????????????????? | +----------------------------------------------------+ Best States ------------- Heat Dissipation 72 Energy Generation 18 Energy Capacity 310 Matter Stores 300 Matter Capacity 300 Sight Range 16 Terrain Scan Density 10 Armor Coverage 600 Resistance: TH 10 Resistance: EM 15 Evasion (%) 55 Recoil Reduction 2 Offensive Hacking 20 Defensive Hacking 10 Authchip Count 3 Item Schematics ----------------- Structural Scanner | -9/Materials | Scanalyzed Imp. Ion Engine | -9/Materials | Scanalyzed Huge Storage Unit | -9/Materials | Hacked Med. Armor Plating | -9/Materials | Scanalyzed Robot Schematics ------------------ M-13 Machinist | -9/Materials | Hacked Fabricated ------------ Nothing Alien Tech Used ----------------- None Achievements -------------- None Challenges ------------ None Game ------ Seed ProtonTripodCannon Manual? 0 Play Time 01:30:11 Cumulative 314.4 hours Start 2024.05.18 @ 11:25:59 End 2024.05.18 @ 13:08:38 Sessions 1 Manual Loads 0 Difficulty Rogue Special Mode None Game No. 188 Rogue 44 Adventurer 144 Explorer 0 Win Type - Total 4 Types 2/0/1/1/0/0/0/0/0 Lore% 64 Gallery% 77 Achievement% 64 Wizard Run 0 Options --------- Layout 0 ASCII 0 Keyboard 0 Movement Mouse Keybinds 0 Fullscreen 2 Font 20/SmallcapsGlow Map View 66x50 Zoom Use 0% Tactical HUD 1 Map Filters NONE Filters NONE Steam X RUN: d6719fa7-b355-42e1-a98d-1da85217e806